[Event "Titled Tuesday Blitz November 07 Early 2023"]
[White "subham777"]
[Black "Mitrabha, Guha"]
[BlackFideId "5057000"]
[WhiteElo "2481"]
[BlackElo "2882"]
[Result "0-1"]
[Round "1"]
[TimeControl "180+1"]
[Date "2023.11.07"]
[WhiteClock "0:00:02"]
[BlackClock "0:00:13"]
[Board "46"]

1. e4 {[%clk 0:03:00]}  e6 {[%clk 0:02:42]} 2. Nf3 {[%clk 0:03:00]}  d5 {[%clk 0:02:38]} 3. Nc3 {[%clk 0:03:00]}  c5 {[%clk 0:02:37]} 4. exd5 {[%clk 0:02:59]}  exd5 {[%clk 0:02:38]} 5. d4 {[%clk 0:02:59]}  Nc6 {[%clk 0:02:39]} 6. Bb5 {[%clk 0:02:57]}  Nf6 {[%clk 0:02:39]} 7. O-O {[%clk 0:02:57]}  Be7 {[%clk 0:02:39]} 8. dxc5 {[%clk 0:02:57]}  O-O {[%clk 0:02:38]} 9. Re1 {[%clk 0:02:28]}  Bg4 {[%clk 0:02:37]} 10. Bxc6 {[%clk 0:02:19]}  bxc6 {[%clk 0:02:35]} 11. Be3 {[%clk 0:02:19]}  Rb8 {[%clk 0:02:35]} 12. b3 {[%clk 0:02:14]}  Re8 {[%clk 0:02:31]} 13. h3 {[%clk 0:02:14]}  Bh5 {[%clk 0:02:26]} 14. g4 {[%clk 0:02:11]}  Nxg4 {[%clk 0:02:17]} 15. hxg4 {[%clk 0:02:05]}  Bxg4 {[%clk 0:02:18]} 16. Bd4 {[%clk 0:01:54]}  Qc8 {[%clk 0:02:03]} 17. Qd3 {[%clk 0:01:31]}  Rb4 {[%clk 0:02:03]} 18. Ne5 {[%clk 0:01:16]}  Bf5 {[%clk 0:02:01]} 19. Qd2 {[%clk 0:01:11]}  Bf6 {[%clk 0:02:01]} 20. Nxd5 {[%clk 0:01:01]}  Rxd4 {[%clk 0:02:00]} 21. Nxf6+ {[%clk 0:01:00]}  gxf6 {[%clk 0:02:00]} 22. Qxd4 {[%clk 0:00:59]}  fxe5 {[%clk 0:01:54]} 23. Rxe5 {[%clk 0:00:57]}  Rd8 {[%clk 0:01:55]} 24. Qf4 {[%clk 0:00:52]}  Bg6 {[%clk 0:01:51]} 25. Rae1 {[%clk 0:00:47]}  Kg7 {[%clk 0:01:45]} 26. Re7 {[%clk 0:00:40]}  Rd5 {[%clk 0:01:38]} 27. R7e5 {[%clk 0:00:35]}  Rd8 {[%clk 0:01:35]} 28. c4 {[%clk 0:00:27]}  Qh3 {[%clk 0:01:32]} 29. R5e3 {[%clk 0:00:23]}  Qc8 {[%clk 0:01:29]} 30. Qe5+ {[%clk 0:00:23]}  Kg8 {[%clk 0:01:29]} 31. Qf6 {[%clk 0:00:16]}  Rf8 {[%clk 0:01:23]} 32. Rg3 {[%clk 0:00:10]}  Qa6 {[%clk 0:01:20]} 33. a4 {[%clk 0:00:08]}  Qb7 {[%clk 0:01:20]} 34. Ree3 {[%clk 0:00:06]}  Qd7 {[%clk 0:01:19]} 35. Qd6 {[%clk 0:00:05]}  Qc8 {[%clk 0:01:18]} 36. Ref3 {[%clk 0:00:04]}  Rd8 {[%clk 0:01:17]} 37. Qf4 {[%clk 0:00:04]}  Qe6 {[%clk 0:01:16]} 38. Re3 {[%clk 0:00:04]}  Qd7 {[%clk 0:01:13]} 39. Qf6 {[%clk 0:00:03]}  Rf8 {[%clk 0:01:13]} 40. Kg2 {[%clk 0:00:02]}  a5 {[%clk 0:01:13]} 41. Ref3 {[%clk 0:00:02]}  Re8 {[%clk 0:01:09]} 42. Re3 {[%clk 0:00:03]}  Rf8 {[%clk 0:01:09]} 43. Re5 {[%clk 0:00:03]}  Qd4 {[%clk 0:01:03]} 44. Qd6 {[%clk 0:00:01]}  Qf4 {[%clk 0:01:02]} 45. Ree3 {[%clk 0:00:02]}  Qh4 {[%clk 0:00:58]} 46. Rh3 {[%clk 0:00:02]}  Qg4+ {[%clk 0:00:55]} 47. Rhg3 {[%clk 0:00:02]}  Qc8 {[%clk 0:00:55]} 48. Qe5 {[%clk 0:00:02]}  Rd8 {[%clk 0:00:51]} 49. Qf6 {[%clk 0:00:03]}  Rf8 {[%clk 0:00:47]} 50. Ref3 {[%clk 0:00:03]}  Qd7 {[%clk 0:00:38]} 51. Qh4 {[%clk 0:00:04]}  Re8 {[%clk 0:00:35]} 52. Re3 {[%clk 0:00:04]}  Rb8 {[%clk 0:00:33]} 53. Qe7 {[%clk 0:00:04]}  Qf5 {[%clk 0:00:29]} 54. Qe5 {[%clk 0:00:04]}  Qc8 {[%clk 0:00:29]} 55. Ref3 {[%clk 0:00:04]}  Qb7 {[%clk 0:00:27]} 56. Rf6 {[%clk 0:00:04]}  Rd8 {[%clk 0:00:23]} 57. Rd6 {[%clk 0:00:03]}  Rf8 {[%clk 0:00:23]} 58. Qf6 {[%clk 0:00:04]}  Qa8 {[%clk 0:00:18]} 59. Re3 {[%clk 0:00:05]}  Qc8 {[%clk 0:00:17]} 60. Kg1 {[%clk 0:00:04]}  Qg4+ {[%clk 0:00:16]} 61. Rg3 {[%clk 0:00:03]}  Qe4 {[%clk 0:00:17]} 62. Re3 {[%clk 0:00:03]}  Qb1+ {[%clk 0:00:17]} 63. Kg2 {[%clk 0:00:03]}  Be4+ {[%clk 0:00:17]} 64. Kg3 {[%clk 0:00:02]}  Qg1+ {[%clk 0:00:17]} 65. Kf4 {[%clk 0:00:03]}  Bg6 {[%clk 0:00:17]} 66. Rf3 {[%clk 0:00:03]}  Re8 {[%clk 0:00:15]} 67. Rd8 {[%clk 0:00:02]}  Qh2+ {[%clk 0:00:15]} 68. Rg3 {[%clk 0:00:02]}  Qxf2+ {[%clk 0:00:15]} 69. Rf3 {[%clk 0:00:03]}  Qh2+ {[%clk 0:00:15]} 70. Rg3 {[%clk 0:00:03]}  Rxd8 {[%clk 0:00:13]} 71. Qxd8+ {[%clk 0:00:03]}  Kg7 {[%clk 0:00:14]} 72. Qd4+ {[%clk 0:00:04]}  Kh6 {[%clk 0:00:13]} 73. Qf2 {[%clk 0:00:03]}  Qxf2+ {[%clk 0:00:12]} 74. Rf3 {[%clk 0:00:03]}  Qd4+ {[%clk 0:00:12]} 75. Kg3 {[%clk 0:00:02]}  Qxc5 {[%clk 0:00:13]} 0-1


[Site "https://www.chess.com"]

[Event "Titled Tuesday Blitz November 07 Early 2023"]
[White "Kazakouski, Valery"]
[Black "Willy, Stephen"]
[WhiteFideId "13507443"]
[BlackFideId "30981468"]
[WhiteElo "2874"]
[BlackElo "2479"]
[Result "1-0"]
[Round "1"]
[TimeControl "180+1"]
[Date "2023.11.07"]
[WhiteClock "0:02:06"]
[BlackClock "0:00:00"]
[Board "47"]

1. Nf3 {[%clk 0:02:54]}  c5 {[%clk 0:02:55]} 2. e4 {[%clk 0:02:53]}  a6 {[%clk 0:02:54]} 3. c4 {[%clk 0:02:52]}  Nc6 {[%clk 0:02:53]} 4. d4 {[%clk 0:02:52]}  cxd4 {[%clk 0:02:53]} 5. Nxd4 {[%clk 0:02:53]}  e5 {[%clk 0:02:54]} 6. Nf5 {[%clk 0:02:53]}  d5 {[%clk 0:02:54]} 7. cxd5 {[%clk 0:02:52]}  Bxf5 {[%clk 0:02:54]} 8. exf5 {[%clk 0:02:52]}  Nd4 {[%clk 0:02:54]} 9. Bd3 {[%clk 0:02:50]}  Nf6 {[%clk 0:02:53]} 10. Nc3 {[%clk 0:02:50]}  Nxd5 {[%clk 0:02:28]} 11. O-O {[%clk 0:02:46]}  Be7 {[%clk 0:02:24]} 12. Be4 {[%clk 0:02:46]}  Nb4 {[%clk 0:01:56]} 13. Bxb7 {[%clk 0:02:37]}  Rb8 {[%clk 0:01:34]} 14. Be4 {[%clk 0:02:36]}  O-O {[%clk 0:01:31]} 15. Qh5 {[%clk 0:02:27]}  g6 {[%clk 0:01:29]} 16. Qg4 {[%clk 0:02:17]}  Rc8 {[%clk 0:01:00]} 17. Bh6 {[%clk 0:02:15]}  Bf6 {[%clk 0:00:40]} 18. Bxf8 {[%clk 0:02:12]}  h5 {[%clk 0:00:23]} 19. Qh3 {[%clk 0:02:09]}  Qxf8 {[%clk 0:00:16]} 20. fxg6 {[%clk 0:02:07]}  fxg6 {[%clk 0:00:09]} 21. Bxg6 {[%clk 0:02:07]}  Rc7 {[%clk 0:00:09]} 22. a3 {[%clk 0:02:05]}  Nbc6 {[%clk 0:00:00]} 23. Nd5 {[%clk 0:02:06]} 1-0


[Site "https://www.chess.com"]

[Event "Titled Tuesday Blitz November 07 Early 2023"]
[White "Remolar Gallen, Jose"]
[Black "Taher, Yoseph Theolifus"]
[WhiteFideId "2215187"]
[BlackFideId "7105347"]
[WhiteElo "2476"]
[BlackElo "2870"]
[Result "0-1"]
[Round "1"]
[TimeControl "180+1"]
[Date "2023.11.07"]
[WhiteClock "0:00:03"]
[BlackClock "0:00:30"]
[Board "48"]

1. e4 {[%clk 0:03:00]}  c5 {[%clk 0:02:53]} 2. Nf3 {[%clk 0:03:01]}  g6 {[%clk 0:02:54]} 3. d4 {[%clk 0:03:00]}  cxd4 {[%clk 0:02:55]} 4. Qxd4 {[%clk 0:03:01]}  Nf6 {[%clk 0:02:54]} 5. e5 {[%clk 0:03:01]}  Nc6 {[%clk 0:02:54]} 6. Qa4 {[%clk 0:03:02]}  Nd5 {[%clk 0:02:54]} 7. Qe4 {[%clk 0:03:03]}  Ndb4 {[%clk 0:02:54]} 8. Bb5 {[%clk 0:03:03]}  Qa5 {[%clk 0:02:52]} 9. Nc3 {[%clk 0:03:03]}  d5 {[%clk 0:02:51]} 10. exd6 {[%clk 0:03:04]}  Bf5 {[%clk 0:02:51]} 11. Qe5 {[%clk 0:03:05]}  f6 {[%clk 0:02:39]} 12. Bxc6+ {[%clk 0:02:45]}  Nxc6 {[%clk 0:02:37]} 13. Qxa5 {[%clk 0:02:46]}  Nxa5 {[%clk 0:02:38]} 14. dxe7 {[%clk 0:02:33]}  Bxe7 {[%clk 0:02:39]} 15. Bh6 {[%clk 0:02:29]}  O-O-O {[%clk 0:02:32]} 16. O-O {[%clk 0:02:28]}  Nc4 {[%clk 0:02:18]} 17. b3 {[%clk 0:02:21]}  Na3 {[%clk 0:02:10]} 18. Rad1 {[%clk 0:02:09]}  Bxc2 {[%clk 0:02:07]} 19. Rxd8+ {[%clk 0:01:45]}  Rxd8 {[%clk 0:02:08]} 20. Rc1 {[%clk 0:01:44]}  Bb4 {[%clk 0:02:03]} 21. Nb5 {[%clk 0:01:38]}  Rd1+ {[%clk 0:01:58]} 22. Rxd1 {[%clk 0:01:37]}  Bxd1 {[%clk 0:01:59]} 23. Nxa3 {[%clk 0:01:06]}  Bxa3 {[%clk 0:01:48]} 24. Be3 {[%clk 0:01:06]}  a6 {[%clk 0:01:45]} 25. Nd4 {[%clk 0:01:05]}  Bg4 {[%clk 0:01:10]} 26. f3 {[%clk 0:01:04]}  Bd7 {[%clk 0:01:09]} 27. Nc2 {[%clk 0:01:04]}  Bd6 {[%clk 0:01:08]} 28. Bd4 {[%clk 0:00:59]}  Kc7 {[%clk 0:00:48]} 29. Bxf6 {[%clk 0:00:52]}  Bf5 {[%clk 0:00:48]} 30. Nd4 {[%clk 0:00:42]}  Bb1 {[%clk 0:00:38]} 31. a4 {[%clk 0:00:41]}  Bc5 {[%clk 0:00:38]} 32. Kf1 {[%clk 0:00:40]}  Kd6 {[%clk 0:00:39]} 33. Ke1 {[%clk 0:00:15]}  Kd5 {[%clk 0:00:37]} 34. Ne2 {[%clk 0:00:16]}  Bc2 {[%clk 0:00:35]} 35. Nc1 {[%clk 0:00:07]}  Be3 {[%clk 0:00:35]} 36. Bb2 {[%clk 0:00:05]}  Bg1 {[%clk 0:00:35]} 37. h3 {[%clk 0:00:05]}  Be3 {[%clk 0:00:35]} 38. Ke2 {[%clk 0:00:05]}  Bg5 {[%clk 0:00:35]} 39. g3 {[%clk 0:00:04]}  h5 {[%clk 0:00:35]} 40. f4 {[%clk 0:00:04]}  Be7 {[%clk 0:00:35]} 41. Kd2 {[%clk 0:00:04]}  Bf5 {[%clk 0:00:35]} 42. h4 {[%clk 0:00:04]}  Bc5 {[%clk 0:00:36]} 43. Nd3 {[%clk 0:00:04]}  Ba7 {[%clk 0:00:34]} 44. Be5 {[%clk 0:00:04]}  Ke4 {[%clk 0:00:35]} 45. Ke2 {[%clk 0:00:04]}  Bg4+ {[%clk 0:00:35]} 46. Kd2 {[%clk 0:00:04]}  Kf3 {[%clk 0:00:35]} 47. Bd6 {[%clk 0:00:02]}  Bf5 {[%clk 0:00:35]} 48. Ne5+ {[%clk 0:00:03]}  Kxg3 {[%clk 0:00:36]} 49. Nc4 {[%clk 0:00:03]}  Kxh4 {[%clk 0:00:36]} 50. Na5 {[%clk 0:00:04]}  b5 {[%clk 0:00:33]} 51. Nc6 {[%clk 0:00:03]}  Bb6 {[%clk 0:00:32]} 52. a5 {[%clk 0:00:04]}  Bf2 {[%clk 0:00:32]} 53. Nb8 {[%clk 0:00:05]}  Bc8 {[%clk 0:00:31]} 54. Nc6 {[%clk 0:00:05]}  Kg4 {[%clk 0:00:31]} 55. Ne7 {[%clk 0:00:06]}  Bf5 {[%clk 0:00:31]} 56. Nd5 {[%clk 0:00:06]}  h4 {[%clk 0:00:31]} 57. Nc7 {[%clk 0:00:03]}  h3 {[%clk 0:00:30]} 0-1


[Site "https://www.chess.com"]

[Event "Titled Tuesday Blitz November 07 Early 2023"]
[White "Timofeev, Artyom"]
[Black "Devaev, Alexander"]
[WhiteFideId "4140419"]
[BlackFideId "4169395"]
[WhiteElo "2856"]
[BlackElo "2467"]
[Result "1/2-1/2"]
[Round "1"]
[TimeControl "180+1"]
[Date "2023.11.07"]
[WhiteClock "0:00:18"]
[BlackClock "0:00:18"]
[Board "55"]

1. c4 {[%clk 0:03:00]}  c5 {[%clk 0:02:59]} 2. Nf3 {[%clk 0:02:59]}  Nf6 {[%clk 0:03:00]} 3. Nc3 {[%clk 0:02:58]}  e6 {[%clk 0:03:00]} 4. e4 {[%clk 0:02:58]}  d6 {[%clk 0:03:00]} 5. d4 {[%clk 0:02:57]}  cxd4 {[%clk 0:03:01]} 6. Nxd4 {[%clk 0:02:58]}  Nc6 {[%clk 0:03:01]} 7. g3 {[%clk 0:02:57]}  Be7 {[%clk 0:03:01]} 8. Bg2 {[%clk 0:02:56]}  O-O {[%clk 0:03:02]} 9. O-O {[%clk 0:02:56]}  Ne5 {[%clk 0:03:02]} 10. b3 {[%clk 0:02:55]}  a6 {[%clk 0:03:02]} 11. h3 {[%clk 0:02:54]}  Re8 {[%clk 0:03:01]} 12. Be3 {[%clk 0:02:53]}  Qc7 {[%clk 0:03:01]} 13. Rc1 {[%clk 0:02:52]}  Bf8 {[%clk 0:03:01]} 14. f4 {[%clk 0:02:51]}  Ng6 {[%clk 0:03:01]} 15. Kh2 {[%clk 0:02:49]}  Rb8 {[%clk 0:03:01]} 16. Qd2 {[%clk 0:02:40]}  b6 {[%clk 0:03:02]} 17. f5 {[%clk 0:02:36]}  Ne5 {[%clk 0:03:01]} 18. Bg5 {[%clk 0:02:35]}  Nfd7 {[%clk 0:02:58]} 19. fxe6 {[%clk 0:02:35]}  fxe6 {[%clk 0:02:58]} 20. Kh1 {[%clk 0:02:15]}  Bb7 {[%clk 0:02:58]} 21. h4 {[%clk 0:02:15]}  Nc5 {[%clk 0:02:56]} 22. Rce1 {[%clk 0:02:14]}  Ba8 {[%clk 0:02:52]} 23. Qe2 {[%clk 0:02:09]}  b5 {[%clk 0:02:41]} 24. Nf3 {[%clk 0:01:54]}  Ncd3 {[%clk 0:02:33]} 25. Nxe5 {[%clk 0:01:47]}  Nxe5 {[%clk 0:02:32]} 26. Rc1 {[%clk 0:01:31]}  bxc4 {[%clk 0:02:33]} 27. Nd1 {[%clk 0:01:28]}  Rbc8 {[%clk 0:02:21]} 28. bxc4 {[%clk 0:01:27]}  Qa5 {[%clk 0:02:08]} 29. Ne3 {[%clk 0:01:26]}  Qa3 {[%clk 0:01:55]} 30. Bf4 {[%clk 0:01:22]}  Nd3 {[%clk 0:01:35]} 31. Rcd1 {[%clk 0:01:15]}  Ne5 {[%clk 0:01:22]} 32. h5 {[%clk 0:01:12]}  h6 {[%clk 0:01:21]} 33. Rd2 {[%clk 0:00:56]}  Qa4 {[%clk 0:01:21]} 34. Bxe5 {[%clk 0:00:55]}  dxe5 {[%clk 0:01:20]} 35. Qg4 {[%clk 0:00:50]}  Bc5 {[%clk 0:00:56]} 36. Re2 {[%clk 0:00:48]}  Bxe3 {[%clk 0:00:53]} 37. Rxe3 {[%clk 0:00:48]}  Qxc4 {[%clk 0:00:52]} 38. a3 {[%clk 0:00:46]}  Rf8 {[%clk 0:00:50]} 39. Rxf8+ {[%clk 0:00:42]}  Rxf8 {[%clk 0:00:50]} 40. Kh2 {[%clk 0:00:40]}  Rf6 {[%clk 0:00:35]} 41. Qd1 {[%clk 0:00:36]}  Qc7 {[%clk 0:00:26]} 42. Rd3 {[%clk 0:00:35]}  Bc6 {[%clk 0:00:21]} 43. Qg4 {[%clk 0:00:33]}  Be8 {[%clk 0:00:18]} 44. Rf3 {[%clk 0:00:25]}  Rxf3 {[%clk 0:00:18]} 45. Bxf3 {[%clk 0:00:25]}  Bf7 {[%clk 0:00:17]} 46. Be2 {[%clk 0:00:23]}  Qc3 {[%clk 0:00:16]} 47. Bxa6 {[%clk 0:00:21]}  Qxa3 {[%clk 0:00:17]} 48. Be2 {[%clk 0:00:21]}  Qe3 {[%clk 0:00:17]} 49. Kg2 {[%clk 0:00:20]}  Be8 {[%clk 0:00:16]} 50. Bf3 {[%clk 0:00:20]}  Qd2+ {[%clk 0:00:15]} 51. Kh3 {[%clk 0:00:20]}  Bf7 {[%clk 0:00:15]} 52. Bg2 {[%clk 0:00:19]}  Qe3 {[%clk 0:00:15]} 53. Bf3 {[%clk 0:00:19]}  Qd4 {[%clk 0:00:14]} 54. Be2 {[%clk 0:00:19]}  Qb2 {[%clk 0:00:14]} 55. Bf3 {[%clk 0:00:19]}  Qb8 {[%clk 0:00:14]} 56. Be2 {[%clk 0:00:18]}  Qd8 {[%clk 0:00:15]} 57. Bf3 {[%clk 0:00:18]}  Qf6 {[%clk 0:00:15]} 58. Be2 {[%clk 0:00:18]}  Be8 {[%clk 0:00:15]} 59. Bf3 {[%clk 0:00:18]}  Bc6 {[%clk 0:00:16]} 60. Kg2 {[%clk 0:00:18]}  Be8 {[%clk 0:00:16]} 61. Kh3 {[%clk 0:00:18]}  Bc6 {[%clk 0:00:16]} 62. Kg2 {[%clk 0:00:17]}  Bb5 {[%clk 0:00:16]} 63. Kh2 {[%clk 0:00:17]}  Bd3 {[%clk 0:00:17]} 64. Kg2 {[%clk 0:00:17]}  Bc4 {[%clk 0:00:17]} 65. Kh2 {[%clk 0:00:17]}  Bb5 {[%clk 0:00:17]} 66. Kg2 {[%clk 0:00:17]}  Be8 {[%clk 0:00:17]} 67. Kh2 {[%clk 0:00:18]}  Bc6 {[%clk 0:00:18]} 68. Kg2 {[%clk 0:00:18]} 1/2-1/2


[Site "https://www.chess.com"]

[Event "Titled Tuesday Blitz November 07 Early 2023"]
[White "Sychev, Klementy"]
[Black "Savitha Shri B"]
[WhiteFideId "4114060"]
[BlackFideId "35061887"]
[WhiteElo "2844"]
[BlackElo "2464"]
[Result "1-0"]
[Round "1"]
[TimeControl "180+1"]
[Date "2023.11.07"]
[WhiteClock "0:00:08"]
[BlackClock "0:00:30"]
[Board "59"]

1. e4 {[%clk 0:03:00]}  c5 {[%clk 0:02:57]} 2. Nf3 {[%clk 0:03:01]}  e6 {[%clk 0:02:57]} 3. d4 {[%clk 0:02:59]}  cxd4 {[%clk 0:02:58]} 4. Nxd4 {[%clk 0:03:00]}  a6 {[%clk 0:02:59]} 5. Bd3 {[%clk 0:02:59]}  Qc7 {[%clk 0:02:54]} 6. O-O {[%clk 0:02:59]}  b5 {[%clk 0:02:54]} 7. a4 {[%clk 0:02:58]}  b4 {[%clk 0:02:54]} 8. Nd2 {[%clk 0:02:58]}  Bb7 {[%clk 0:02:54]} 9. Nc4 {[%clk 0:02:47]}  Nc6 {[%clk 0:02:50]} 10. Nxc6 {[%clk 0:02:41]}  Bxc6 {[%clk 0:02:49]} 11. Qf3 {[%clk 0:02:40]}  Nf6 {[%clk 0:02:26]} 12. Re1 {[%clk 0:02:05]}  Be7 {[%clk 0:01:59]} 13. Qg3 {[%clk 0:01:54]}  Qxg3 {[%clk 0:01:58]} 14. hxg3 {[%clk 0:01:53]}  d6 {[%clk 0:01:58]} 15. Bd2 {[%clk 0:01:36]}  a5 {[%clk 0:01:54]} 16. e5 {[%clk 0:01:33]}  dxe5 {[%clk 0:01:35]} 17. Nxe5 {[%clk 0:01:32]}  Bd7 {[%clk 0:01:34]} 18. Nxd7 {[%clk 0:01:28]}  Nxd7 {[%clk 0:01:30]} 19. Bb5 {[%clk 0:01:28]}  Rd8 {[%clk 0:01:23]} 20. Bf4 {[%clk 0:01:16]}  O-O {[%clk 0:00:56]} 21. Bc7 {[%clk 0:01:12]}  Rc8 {[%clk 0:00:56]} 22. Bxa5 {[%clk 0:01:10]}  Nf6 {[%clk 0:00:57]} 23. c3 {[%clk 0:00:57]}  bxc3 {[%clk 0:00:48]} 24. Bxc3 {[%clk 0:00:53]}  Nd5 {[%clk 0:00:48]} 25. Bd4 {[%clk 0:00:49]}  Bb4 {[%clk 0:00:46]} 26. Rec1 {[%clk 0:00:48]}  Ba5 {[%clk 0:00:45]} 27. Rc4 {[%clk 0:00:30]}  f6 {[%clk 0:00:36]} 28. Rac1 {[%clk 0:00:29]}  Rcd8 {[%clk 0:00:33]} 29. Bc5 {[%clk 0:00:26]}  Rf7 {[%clk 0:00:34]} 30. Ba3 {[%clk 0:00:23]}  Nb6 {[%clk 0:00:32]} 31. Rc6 {[%clk 0:00:21]}  Rfd7 {[%clk 0:00:33]} 32. b4 {[%clk 0:00:16]}  Bxb4 {[%clk 0:00:25]} 33. Bxb4 {[%clk 0:00:16]}  Nd5 {[%clk 0:00:26]} 34. Ba5 {[%clk 0:00:13]}  Ra7 {[%clk 0:00:27]} 35. Bxd8 {[%clk 0:00:13]}  Kf7 {[%clk 0:00:28]} 36. Rc7+ {[%clk 0:00:12]}  Nxc7 {[%clk 0:00:28]} 37. Rxc7+ {[%clk 0:00:12]}  Kg6 {[%clk 0:00:29]} 38. Rxa7 {[%clk 0:00:12]}  f5 {[%clk 0:00:30]} 39. Bc4 {[%clk 0:00:11]}  h5 {[%clk 0:00:31]} 40. Bxe6 {[%clk 0:00:11]}  Kh6 {[%clk 0:00:32]} 41. Bxf5 {[%clk 0:00:10]}  h4 {[%clk 0:00:33]} 42. gxh4 {[%clk 0:00:09]}  Kh5 {[%clk 0:00:33]} 43. Bg5 {[%clk 0:00:08]}  g6 {[%clk 0:00:30]} 44. Rh7# {[%clk 0:00:08]} 1-0


[Site "https://www.chess.com"]

[Event "Titled Tuesday Blitz November 07 Early 2023"]
[White "Tarigan, Gilbert Elroy"]
[Black "Mazurkiewicz, Michal"]
[WhiteFideId "7108133"]
[BlackFideId "1124943"]
[WhiteElo "2837"]
[BlackElo "2460"]
[Result "1-0"]
[Round "1"]
[TimeControl "180+1"]
[Date "2023.11.07"]
[WhiteClock "0:00:10"]
[BlackClock "0:00:10"]
[Board "61"]

1. c4 {[%clk 0:02:51]}  Nf6 {[%clk 0:02:59]} 2. Nc3 {[%clk 0:02:50]}  g6 {[%clk 0:02:59]} 3. Nf3 {[%clk 0:02:49]}  Bg7 {[%clk 0:02:59]} 4. g3 {[%clk 0:02:49]}  O-O {[%clk 0:03:00]} 5. Bg2 {[%clk 0:02:50]}  d6 {[%clk 0:03:00]} 6. O-O {[%clk 0:02:51]}  c5 {[%clk 0:03:01]} 7. b3 {[%clk 0:02:50]}  Nc6 {[%clk 0:03:00]} 8. Bb2 {[%clk 0:02:50]}  Rb8 {[%clk 0:03:00]} 9. d4 {[%clk 0:02:49]}  cxd4 {[%clk 0:02:59]} 10. Nxd4 {[%clk 0:02:50]}  Nxd4 {[%clk 0:02:56]} 11. Qxd4 {[%clk 0:02:51]}  a6 {[%clk 0:02:51]} 12. a4 {[%clk 0:02:47]}  Be6 {[%clk 0:02:36]} 13. a5 {[%clk 0:02:39]}  Qc7 {[%clk 0:02:33]} 14. Rfd1 {[%clk 0:02:35]}  Rfd8 {[%clk 0:02:30]} 15. Qd2 {[%clk 0:02:19]}  Qc5 {[%clk 0:02:20]} 16. Na4 {[%clk 0:02:11]}  Qh5 {[%clk 0:02:19]} 17. h4 {[%clk 0:02:11]}  d5 {[%clk 0:02:14]} 18. Nb6 {[%clk 0:01:55]}  dxc4 {[%clk 0:02:11]} 19. Qxd8+ {[%clk 0:01:55]}  Rxd8 {[%clk 0:02:08]} 20. Rxd8+ {[%clk 0:01:56]}  Bf8 {[%clk 0:02:07]} 21. Bf3 {[%clk 0:01:53]}  Qb5 {[%clk 0:00:52]} 22. Bxf6 {[%clk 0:01:41]}  exf6 {[%clk 0:00:52]} 23. bxc4 {[%clk 0:01:42]}  Qb2 {[%clk 0:00:43]} 24. Rad1 {[%clk 0:01:41]}  Kg7 {[%clk 0:00:43]} 25. R8d2 {[%clk 0:00:58]}  Qb4 {[%clk 0:00:36]} 26. Bxb7 {[%clk 0:00:54]}  Qxa5 {[%clk 0:00:36]} 27. Nd5 {[%clk 0:00:50]}  Bc5 {[%clk 0:00:36]} 28. Nf4 {[%clk 0:00:34]}  Bxc4 {[%clk 0:00:24]} 29. Bd5 {[%clk 0:00:34]}  Qa3 {[%clk 0:00:17]} 30. Kg2 {[%clk 0:00:27]}  Bxd5+ {[%clk 0:00:17]} 31. Rxd5 {[%clk 0:00:26]}  Bb4 {[%clk 0:00:13]} 32. Rd7 {[%clk 0:00:24]}  Qb3 {[%clk 0:00:13]} 33. Rb7 {[%clk 0:00:17]}  Qc4 {[%clk 0:00:13]} 34. Rdd7 {[%clk 0:00:14]}  a5 {[%clk 0:00:12]} 35. Nd5 {[%clk 0:00:11]}  Bc5 {[%clk 0:00:11]} 36. Rxf7+ {[%clk 0:00:10]}  Kh6 {[%clk 0:00:10]} 37. Rxh7# {[%clk 0:00:10]} 1-0


[Site "https://www.chess.com"]

[Event "Titled Tuesday Blitz November 07 Early 2023"]
[White "Kashtanov, Ruslan"]
[Black "mind1mover"]
[WhiteFideId "4124871"]
[WhiteElo "2457"]
[BlackElo "2835"]
[Result "0-1"]
[Round "1"]
[TimeControl "180+1"]
[Date "2023.11.07"]
[WhiteClock "0:00:00"]
[BlackClock "0:00:18"]
[Board "62"]

1. d4 {[%clk 0:02:54]}  Nf6 {[%clk 0:02:56]} 2. c4 {[%clk 0:02:54]}  Nc6 {[%clk 0:02:55]} 3. Nc3 {[%clk 0:02:45]}  d5 {[%clk 0:02:53]} 4. cxd5 {[%clk 0:02:41]}  Nxd5 {[%clk 0:02:53]} 5. e4 {[%clk 0:02:41]}  Nxc3 {[%clk 0:02:51]} 6. bxc3 {[%clk 0:02:41]}  e5 {[%clk 0:02:52]} 7. d5 {[%clk 0:02:40]}  Nb8 {[%clk 0:02:46]} 8. Nf3 {[%clk 0:02:37]}  Bd6 {[%clk 0:02:46]} 9. Bg5 {[%clk 0:02:28]}  f6 {[%clk 0:02:45]} 10. Be3 {[%clk 0:02:28]}  O-O {[%clk 0:02:39]} 11. Be2 {[%clk 0:02:26]}  Nd7 {[%clk 0:02:38]} 12. O-O {[%clk 0:02:24]}  Bc5 {[%clk 0:02:33]} 13. Bd2 {[%clk 0:02:17]}  Kh8 {[%clk 0:02:24]} 14. Qc2 {[%clk 0:02:13]}  Bd6 {[%clk 0:02:14]} 15. c4 {[%clk 0:02:11]}  Nc5 {[%clk 0:02:12]} 16. Be3 {[%clk 0:02:02]}  b6 {[%clk 0:02:00]} 17. Nh4 {[%clk 0:01:54]}  Bd7 {[%clk 0:01:51]} 18. g4 {[%clk 0:01:47]}  g6 {[%clk 0:01:47]} 19. Bh6 {[%clk 0:01:25]}  f5 {[%clk 0:01:47]} 20. Bxf8 {[%clk 0:01:21]}  Bxf8 {[%clk 0:01:48]} 21. Ng2 {[%clk 0:01:18]}  Nxe4 {[%clk 0:01:24]} 22. Bd3 {[%clk 0:01:11]}  Nd6 {[%clk 0:01:18]} 23. gxf5 {[%clk 0:01:07]}  gxf5 {[%clk 0:01:19]} 24. f3 {[%clk 0:01:03]}  Qf6 {[%clk 0:01:10]} 25. Rae1 {[%clk 0:01:02]}  Nf7 {[%clk 0:01:02]} 26. Ne3 {[%clk 0:01:00]}  Bc5 {[%clk 0:01:01]} 27. Kh1 {[%clk 0:01:00]}  Nd6 {[%clk 0:00:58]} 28. Re2 {[%clk 0:00:53]}  Rf8 {[%clk 0:00:55]} 29. Ng2 {[%clk 0:00:52]}  Rg8 {[%clk 0:00:45]} 30. Rfe1 {[%clk 0:00:42]}  Bd4 {[%clk 0:00:44]} 31. Rf1 {[%clk 0:00:37]}  f4 {[%clk 0:00:40]} 32. Qc1 {[%clk 0:00:23]}  Rg5 {[%clk 0:00:28]} 33. Qe1 {[%clk 0:00:20]}  Rh5 {[%clk 0:00:22]} 34. h4 {[%clk 0:00:14]}  Bf5 {[%clk 0:00:20]} 35. Be4 {[%clk 0:00:09]}  Nxe4 {[%clk 0:00:19]} 36. fxe4 {[%clk 0:00:09]}  Bg4 {[%clk 0:00:19]} 37. Rd2 {[%clk 0:00:07]}  f3 {[%clk 0:00:19]} 38. Rxd4 {[%clk 0:00:00]}  exd4 {[%clk 0:00:18]} 0-1


[Site "https://www.chess.com"]